Workbook

Sheet TEORICO

Sheet Ejercicio 01

Sheet Ejercicio 02
B3: Nombre | C3: Apellido | D3: Sucursal | E3: Enero | F3: Febrero | G3: Marzo | H3: Total | I3: Promedio
B4: Javier | C4: Aguilar | D4: Lima | E4: 85145 | F4: 92899 | G4: 26960 | H4: =IF(G4="","",SUM(E4:G4)) -> 205004 | I4: =IF(G4="","",AVERAGE(E4:G4)) -> 68334.66667
B5: María | C5: Borda | D5: Arequipa | E5: 84803 | F5: 69642 | G5: 84184 | H5: =IF(G5="","",SUM(E5:G5)) -> 238629 | I5: =IF(G5="","",AVERAGE(E5:G5)) -> 79543
B6: José | C6: Bryce | D6: Trujillo | E6: 32521 | F6: 76534 | G6: 94299 | H6: 203354 | I6: 67784.66667
B7: Estela | C7: Calderón | D7: Chiclayo | E7: 34281 | F7: 40328 | G7: 11692 | H7: 86301 | I7: 28767
B8: Francisco | C8: Cárdenas | D8: Piura | E8: 18264 | F8: 62469 | G8: 29946 | H8: 110679 | I8: 36893
B9: Andrés | C9: Cervantes | D9: Ayacucho | E9: 17152 | F9: 23153 | G9: 88056 | H9: 128361 | I9: 42787
B10: Melania | C10: Chávez | D10: Lima | E10: 77069 | F10: 40416 | G10: 53232 | H10: 170717 | I10: 56905.66667
B11: Magdyel | C11: Chumpitaz | D11: Arequipa | E11: 90196 | F11: 47127 | G11: 20152 | H11: 157475 | I11: 52491.66667
B12: Lazslo | C12: Contreras | D12: Trujillo | E12: 45978 | F12: 54077 | G12: 77279 | H12: 177334 | I12: 59111.33333
B13: Efraín | C13: Díaz | D13: Chiclayo | E13: 57926 | F13: 90363 | G13: 61737 | H13: 210026 | I13: 70008.66667
B14: Rosana | C14: Fernández | D14: Trujillo | E14: 79867 | F14: 76454 | G14: 56530 | H14: 212851 | I14: 70950.33333
B15: Piero | C15: Guerrero | D15: Chiclayo | E15: 74192 | F15: 83011 | G15: 87361 | H15: 244564 | I15: 81521.33333
B16: Miguel | C16: Kovacs | D16: Piura | E16: 96587 | F16: 46732 | G16: 16608 | H16: 159927 | I16: 53309
B17: Pedro | C17: La Guardia | D17: Ayacucho | E17: 12250 | F17: 77462 | G17: 94059 | H17: 183771 | I17: 61257
B18: Mario | C18: Lombardi | D18: Lima | E18: 72995 | F18: 12901 | G18: 17199 | H18: 103095 | I18: 34365
B19: Alfredo | C19: López | D19: Arequipa | E19: 65262 | F19: 26767 | G19: 23071 | H19: 115100 | I19: 38366.66667
B20: Ernesto | C20: Oblitas | D20: Piura | E20: 58630 | F20: 98759 | G20: 80251 | H20: 237640 | I20: 79213.33333
B21: Jorge | C21: Oviedo | D21: Ayacucho | E21: 42897 | F21: 43175 | G21: 80012 | H21: 166084 | I21: 55361.33333
B22: Gustavo | C22: Paredes | D22: Lima | E22: 43224 | F22: 16274 | G22: 92572 | H22: 152070 | I22: 50690
B23: Juan | C23: Peredo | D23: Arequipa | E23: 21543 | F23: 81625 | G23: 24877 | H23: 128045 | I23: 42681.66667
B24: Héctor | C24: Pimentel | D24: Arequipa | E24: 61156 | F24: 87549 | G24: 61594 | H24: 210299 | I24: 70099.66667
B25: Claudio | C25: Pino | D25: Trujillo | E25: 49542 | F25: 26591 | G25: 21125 | H25: 97258 | I25: 32419.33333
B26: Paolo | C26: Pizarro | D26: Chiclayo | E26: 87126 | F26: 67508 | G26: 76407 | H26: 231041 | I26: 77013.66667
B27: Luis | C27: Pozada | D27: Piura | E27: 21109 | F27: 96663 | G27: 95217 | H27: 212989 | I27: 70996.33333
B28: Alfredo | C28: Ugaz | D28: Ayacucho | E28: 20142 | F28: 42038 | G28: 50803 | H28: 112983 | I28: 37661
B29: Santiago | C29: Urbina | D29: Lima | E29: 39059 | F29: 71723 | G29: 57633 | H29: 168415 | I29: 56138.33333
B30: Yolanda | C30: Vargas | D30: Arequipa | E30: 56517 | F30: 32534 | G30: 74419 | H30: 163470 | I30: 54490
B31: Alicia | C31: Wiese | D31: Trujillo | E31: 32403 | F31: 40226 | G31: 90368 | H31: 162997 | I31: 54332.33333
H69: =IF(G69="","",SUM(E69:G69)) ->  | I69: =IF(G69="","",AVERAGE(E69:G69)) -> 
H133: =IF(G133="","",SUM(E133:G133)) ->  | I133: =IF(G133="","",AVERAGE(E133:G133)) -> 
H197: =IF(G197="","",SUM(E197:G197)) ->  | I197: =IF(G197="","",AVERAGE(E197:G197)) -> 
H261: =IF(G261="","",SUM(E261:G261)) ->  | I261: =IF(G261="","",AVERAGE(E261:G261)) -> 
H325: =IF(G325="","",SUM(E325:G325)) ->  | I325: =IF(G325="","",AVERAGE(E325:G325)) -> 
H389: =IF(G389="","",SUM(E389:G389)) ->  | I389: =IF(G389="","",AVERAGE(E389:G389)) -> 
H453: =IF(G453="","",SUM(E453:G453)) ->  | I453: =IF(G453="","",AVERAGE(E453:G453)) -> 
H517: =IF(G517="","",SUM(E517:G517)) ->  | I517: =IF(G517="","",AVERAGE(E517:G517)) -> 
H581: =IF(G581="","",SUM(E581:G581)) ->  | I581: =IF(G581="","",AVERAGE(E581:G581)) -> 
H645: =IF(G645="","",SUM(E645:G645)) ->  | I645: =IF(G645="","",AVERAGE(E645:G645)) -> 
H709: =IF(G709="","",SUM(E709:G709)) ->  | I709: =IF(G709="","",AVERAGE(E709:G709)) -> 
H773: =IF(G773="","",SUM(E773:G773)) ->  | I773: =IF(G773="","",AVERAGE(E773:G773)) -> 
H837: =IF(G837="","",SUM(E837:G837)) ->  | I837: =IF(G837="","",AVERAGE(E837:G837)) -> 
H901: =IF(G901="","",SUM(E901:G901)) ->  | I901: =IF(G901="","",AVERAGE(E901:G901)) -> 
H965: =IF(G965="","",SUM(E965:G965)) ->  | I965: =IF(G965="","",AVERAGE(E965:G965)) -> 

Sheet Ejercicio 03
B3: Nombre | C3: Apellido | D3: Sucursal | E3: Enero | F3: Febrero | G3: Marzo | H3: Total | I3: Promedio
B4: Javier | C4: Aguilar | D4: Lima | E4: 85145 | F4: 92899 | G4: 26960 | H4: =IF(G4="","",SUM(E4:G4)) -> 205004 | I4: =IF(G4="","",AVERAGE(E4:G4)) -> 68334.66667
B5: María | C5: Borda | D5: Arequipa | E5: 84803 | F5: 69642 | G5: 84184 | H5: =IF(G5="","",SUM(E5:G5)) -> 238629 | I5: =IF(G5="","",AVERAGE(E5:G5)) -> 79543
B6: José | C6: Bryce | D6: Trujillo | E6: 32521 | F6: 76534 | G6: 94299 | H6: =IF(G6="","",SUM(E6:G6)) -> 203354 | I6: =IF(G6="","",AVERAGE(E6:G6)) -> 67784.66667
B7: Estela | C7: Calderón | D7: Chiclayo | E7: 34281 | F7: 40328 | G7: 11692 | H7: =IF(G7="","",SUM(E7:G7)) -> 86301 | I7: =IF(G7="","",AVERAGE(E7:G7)) -> 28767
B8: Francisco | C8: Cárdenas | D8: Piura | E8: 18264 | F8: 62469 | G8: 29946 | H8: =IF(G8="","",SUM(E8:G8)) -> 110679 | I8: =IF(G8="","",AVERAGE(E8:G8)) -> 36893
B9: Andrés | C9: Cervantes | D9: Ayacucho | E9: 17152 | F9: 23153 | G9: 88056 | H9: =IF(G9="","",SUM(E9:G9)) -> 128361 | I9: =IF(G9="","",AVERAGE(E9:G9)) -> 42787
B10: Melania | C10: Chávez | D10: Lima | E10: 77069 | F10: 40416 | G10: 53232 | H10: =IF(G10="","",SUM(E10:G10)) -> 170717 | I10: =IF(G10="","",AVERAGE(E10:G10)) -> 56905.66667
B11: Magdyel | C11: Chumpitaz | D11: Arequipa | E11: 90196 | F11: 47127 | G11: 20152 | H11: =IF(G11="","",SUM(E11:G11)) -> 157475 | I11: =IF(G11="","",AVERAGE(E11:G11)) -> 52491.66667
B12: Lazslo | C12: Contreras | D12: Trujillo | E12: 45978 | F12: 54077 | G12: 77279 | H12: =IF(G12="","",SUM(E12:G12)) -> 177334 | I12: =IF(G12="","",AVERAGE(E12:G12)) -> 59111.33333
B13: Efraín | C13: Díaz | D13: Chiclayo | E13: 57926 | F13: 90363 | G13: 61737 | H13: =IF(G13="","",SUM(E13:G13)) -> 210026 | I13: =IF(G13="","",AVERAGE(E13:G13)) -> 70008.66667
B14: Rosana | C14: Fernández | D14: Trujillo | E14: 79867 | F14: 76454 | G14: 56530 | H14: =IF(G14="","",SUM(E14:G14)) -> 212851 | I14: =IF(G14="","",AVERAGE(E14:G14)) -> 70950.33333
B15: Piero | C15: Guerrero | D15: Chiclayo | E15: 74192 | F15: 83011 | G15: 87361 | H15: =IF(G15="","",SUM(E15:G15)) -> 244564 | I15: =IF(G15="","",AVERAGE(E15:G15)) -> 81521.33333
B16: Miguel | C16: Kovacs | D16: Piura | E16: 96587 | F16: 46732 | G16: 16608 | H16: =IF(G16="","",SUM(E16:G16)) -> 159927 | I16: =IF(G16="","",AVERAGE(E16:G16)) -> 53309
B17: Pedro | C17: La Guardia | D17: Ayacucho | E17: 12250 | F17: 77462 | G17: 94059 | H17: =IF(G17="","",SUM(E17:G17)) -> 183771 | I17: =IF(G17="","",AVERAGE(E17:G17)) -> 61257
B18: Mario | C18: Lombardi | D18: Lima | E18: 72995 | F18: 12901 | G18: 17199 | H18: =IF(G18="","",SUM(E18:G18)) -> 103095 | I18: =IF(G18="","",AVERAGE(E18:G18)) -> 34365
B19: Alfredo | C19: López | D19: Arequipa | E19: 65262 | F19: 26767 | G19: 23071 | H19: =IF(G19="","",SUM(E19:G19)) -> 115100 | I19: =IF(G19="","",AVERAGE(E19:G19)) -> 38366.66667
B20: Ernesto | C20: Oblitas | D20: Piura | E20: 58630 | F20: 98759 | G20: 80251 | H20: =IF(G20="","",SUM(E20:G20)) -> 237640 | I20: =IF(G20="","",AVERAGE(E20:G20)) -> 79213.33333
B21: Jorge | C21: Oviedo | D21: Ayacucho | E21: 42897 | F21: 43175 | G21: 80012 | H21: =IF(G21="","",SUM(E21:G21)) -> 166084 | I21: =IF(G21="","",AVERAGE(E21:G21)) -> 55361.33333
B22: Gustavo | C22: Paredes | D22: Lima | E22: 43224 | F22: 16274 | G22: 92572 | H22: =IF(G22="","",SUM(E22:G22)) -> 152070 | I22: =IF(G22="","",AVERAGE(E22:G22)) -> 50690
B23: Juan | C23: Peredo | D23: Arequipa | E23: 21543 | F23: 81625 | G23: 24877 | H23: =IF(G23="","",SUM(E23:G23)) -> 128045 | I23: =IF(G23="","",AVERAGE(E23:G23)) -> 42681.66667
B24: Héctor | C24: Pimentel | D24: Arequipa | E24: 61156 | F24: 87549 | G24: 61594 | H24: =IF(G24="","",SUM(E24:G24)) -> 210299 | I24: =IF(G24="","",AVERAGE(E24:G24)) -> 70099.66667
B25: Claudio | C25: Pino | D25: Trujillo | E25: 49542 | F25: 26591 | G25: 21125 | H25: =IF(G25="","",SUM(E25:G25)) -> 97258 | I25: =IF(G25="","",AVERAGE(E25:G25)) -> 32419.33333
B26: Paolo | C26: Pizarro | D26: Chiclayo | E26: 87126 | F26: 67508 | G26: 76407 | H26: =IF(G26="","",SUM(E26:G26)) -> 231041 | I26: =IF(G26="","",AVERAGE(E26:G26)) -> 77013.66667
B27: Luis | C27: Pozada | D27: Piura | E27: 21109 | F27: 96663 | G27: 95217 | H27: =IF(G27="","",SUM(E27:G27)) -> 212989 | I27: =IF(G27="","",AVERAGE(E27:G27)) -> 70996.33333
B28: Alfredo | C28: Ugaz | D28: Ayacucho | E28: 20142 | F28: 42038 | G28: 50803 | H28: =IF(G28="","",SUM(E28:G28)) -> 112983 | I28: =IF(G28="","",AVERAGE(E28:G28)) -> 37661
B29: Santiago | C29: Urbina | D29: Lima | E29: 39059 | F29: 71723 | G29: 57633 | H29: =IF(G29="","",SUM(E29:G29)) -> 168415 | I29: =IF(G29="","",AVERAGE(E29:G29)) -> 56138.33333
B30: Yolanda | C30: Vargas | D30: Arequipa | E30: 56517 | F30: 32534 | G30: 74419 | H30: =IF(G30="","",SUM(E30:G30)) -> 163470 | I30: =IF(G30="","",AVERAGE(E30:G30)) -> 54490
B31: Alicia | C31: Wiese | D31: Trujillo | E31: 32403 | F31: 40226 | G31: 90368 | H31: =IF(G31="","",SUM(E31:G31)) -> 162997 | I31: =IF(G31="","",AVERAGE(E31:G31)) -> 54332.33333

Sheet Ejercicio 04
B3: Nombre | C3: Apellido | D3: Sucursal | E3: Enero | F3: Febrero | G3: Marzo | H3: Total | I3: Promedio
B4: Javier | C4: Aguilar | D4: Lima | E4: 85145 | F4: 92899 | G4: 26960 | H4: =IF(G4="","",SUM(E4:G4)) -> 205004 | I4: =IF(G4="","",AVERAGE(E4:G4)) -> 68334.66667
B5: María | C5: Borda | D5: Arequipa | E5: 84803 | F5: 69642 | G5: 84184 | H5: =IF(G5="","",SUM(E5:G5)) -> 238629 | I5: =IF(G5="","",AVERAGE(E5:G5)) -> 79543
B6: José | C6: Bryce | D6: Trujillo | E6: 32521 | F6: 76534 | G6: 94299 | H6: 203354 | I6: 67784.66667
B7: Estela | C7: Calderón | D7: Chiclayo | E7: 34281 | F7: 40328 | G7: 11692 | H7: 86301 | I7: 28767
B8: Francisco | C8: Cárdenas | D8: Piura | E8: 18264 | F8: 62469 | G8: 29946 | H8: 110679 | I8: 36893
B9: Andrés | C9: Cervantes | D9: Ayacucho | E9: 17152 | F9: 23153 | G9: 88056 | H9: 128361 | I9: 42787
B10: Melania | C10: Chávez | D10: Lima | E10: 77069 | F10: 40416 | G10: 53232 | H10: 170717 | I10: 56905.66667
B11: Magdyel | C11: Chumpitaz | D11: Arequipa | E11: 90196 | F11: 47127 | G11: 20152 | H11: 157475 | I11: 52491.66667
B12: Lazslo | C12: Contreras | D12: Trujillo | E12: 45978 | F12: 54077 | G12: 77279 | H12: 177334 | I12: 59111.33333
B13: Efraín | C13: Díaz | D13: Chiclayo | E13: 57926 | F13: 90363 | G13: 61737 | H13: 210026 | I13: 70008.66667
B14: Rosana | C14: Fernández | D14: Trujillo | E14: 79867 | F14: 76454 | G14: 56530 | H14: 212851 | I14: 70950.33333
B15: Piero | C15: Guerrero | D15: Chiclayo | E15: 74192 | F15: 83011 | G15: 87361 | H15: 244564 | I15: 81521.33333
B16: Miguel | C16: Kovacs | D16: Piura | E16: 96587 | F16: 46732 | G16: 16608 | H16: 159927 | I16: 53309
B17: Pedro | C17: La Guardia | D17: Ayacucho | E17: 12250 | F17: 77462 | G17: 94059 | H17: 183771 | I17: 61257
B18: Mario | C18: Lombardi | D18: Lima | E18: 72995 | F18: 12901 | G18: 17199 | H18: 103095 | I18: 34365
B19: Alfredo | C19: López | D19: Arequipa | E19: 65262 | F19: 26767 | G19: 23071 | H19: 115100 | I19: 38366.66667
B20: Ernesto | C20: Oblitas | D20: Piura | E20: 58630 | F20: 98759 | G20: 80251 | H20: 237640 | I20: 79213.33333
B21: Jorge | C21: Oviedo | D21: Ayacucho | E21: 42897 | F21: 43175 | G21: 80012 | H21: 166084 | I21: 55361.33333
B22: Gustavo | C22: Paredes | D22: Lima | E22: 43224 | F22: 16274 | G22: 92572 | H22: 152070 | I22: 50690
B23: Juan | C23: Peredo | D23: Arequipa | E23: 21543 | F23: 81625 | G23: 24877 | H23: 128045 | I23: 42681.66667
B24: Héctor | C24: Pimentel | D24: Arequipa | E24: 61156 | F24: 87549 | G24: 61594 | H24: 210299 | I24: 70099.66667
B25: Claudio | C25: Pino | D25: Trujillo | E25: 49542 | F25: 26591 | G25: 21125 | H25: 97258 | I25: 32419.33333
B26: Paolo | C26: Pizarro | D26: Chiclayo | E26: 87126 | F26: 67508 | G26: 76407 | H26: 231041 | I26: 77013.66667
B27: Luis | C27: Pozada | D27: Piura | E27: 21109 | F27: 96663 | G27: 95217 | H27: 212989 | I27: 70996.33333
B28: Alfredo | C28: Ugaz | D28: Ayacucho | E28: 20142 | F28: 42038 | G28: 50803 | H28: 112983 | I28: 37661
B29: Santiago | C29: Urbina | D29: Lima | E29: 39059 | F29: 71723 | G29: 57633 | H29: 168415 | I29: 56138.33333
B30: Yolanda | C30: Vargas | D30: Arequipa | E30: 56517 | F30: 32534 | G30: 74419 | H30: 163470 | I30: 54490
B31: Alicia | C31: Wiese | D31: Trujillo | E31: 32403 | F31: 40226 | G31: 90368 | H31: 162997 | I31: 54332.33333

Sheet Ejercicio 05
B8: Nombre | C8: Apellido | D8: Sucursal | E8: Enero | G8: Nombre | H8: Apellido | I8: Sucursal | J8: Febrero | L8: Nombre | M8: Apellido | N8: Sucursal | O8: Marzo
B9: Javier | C9: Aguilar | D9: Lima | E9: 85145 | G9: Javier | H9: Aguilar | I9: Lima | J9: 92899 | L9: Javier | M9: Aguilar | N9: Lima | O9: 26960
B10: María | C10: Borda | D10: Arequipa | E10: 84803 | G10: María | H10: Borda | I10: Arequipa | J10: 69642 | L10: María | M10: Borda | N10: Arequipa | O10: 84184
B11: José | C11: Bryce | D11: Trujillo | E11: 32521 | G11: José | H11: Bryce | I11: Trujillo | J11: 76534 | L11: José | M11: Bryce | N11: Trujillo | O11: 94299
B12: Estela | C12: Calderón | D12: Chiclayo | E12: 34281 | G12: Estela | H12: Calderón | I12: Chiclayo | J12: 40328 | L12: Estela | M12: Calderón | N12: Chiclayo | O12: 11692
B13: Francisco | C13: Cárdenas | D13: Piura | E13: 18264 | G13: Francisco | H13: Cárdenas | I13: Piura | J13: 62469 | L13: Francisco | M13: Cárdenas | N13: Piura | O13: 29946
B14: Andrés | C14: Cervantes | D14: Ayacucho | E14: 17152 | G14: Andrés | H14: Cervantes | I14: Ayacucho | J14: 23153 | L14: Andrés | M14: Cervantes | N14: Ayacucho | O14: 88056
B15: Melania | C15: Chávez | D15: Lima | E15: 77069 | G15: Melania | H15: Chávez | I15: Lima | J15: 40416 | L15: Melania | M15: Chávez | N15: Lima | O15: 53232
B16: Magdyel | C16: Chumpitaz | D16: Arequipa | E16: 90196 | G16: Magdyel | H16: Chumpitaz | I16: Arequipa | J16: 47127 | L16: Magdyel | M16: Chumpitaz | N16: Arequipa | O16: 20152
B17: Lazslo | C17: Contreras | D17: Trujillo | E17: 45978 | G17: Lazslo | H17: Contreras | I17: Trujillo | J17: 54077 | L17: Lazslo | M17: Contreras | N17: Trujillo | O17: 77279
B18: Efraín | C18: Díaz | D18: Chiclayo | E18: 57926 | G18: Efraín | H18: Díaz | I18: Chiclayo | J18: 90363 | L18: Efraín | M18: Díaz | N18: Chiclayo | O18: 61737
B19: Rosana | C19: Fernández | D19: Trujillo | E19: 79867 | G19: Rosana | H19: Fernández | I19: Trujillo | J19: 76454 | L19: Rosana | M19: Fernández | N19: Trujillo | O19: 56530
B20: Piero | C20: Guerrero | D20: Chiclayo | E20: 74192 | G20: Piero | H20: Guerrero | I20: Chiclayo | J20: 83011 | L20: Piero | M20: Guerrero | N20: Chiclayo | O20: 87361
B21: Miguel | C21: Kovacs | D21: Piura | E21: 96587 | G21: Miguel | H21: Kovacs | I21: Piura | J21: 46732 | L21: Miguel | M21: Kovacs | N21: Piura | O21: 16608
B22: Pedro | C22: La Guardia | D22: Ayacucho | E22: 12250 | G22: Pedro | H22: La Guardia | I22: Ayacucho | J22: 77462 | L22: Pedro | M22: La Guardia | N22: Ayacucho | O22: 94059
G23: Mario | H23: Lombardi | I23: Lima | J23: 12901 | L23: Mario | M23: Lombardi | N23: Lima | O23: 17199
G24: Alfredo | H24: López | I24: Arequipa | J24: 26767 | L24: Alfredo | M24: López | N24: Arequipa | O24: 23071
G25: Ernesto | H25: Oblitas | I25: Piura | J25: 98759 | L25: Ernesto | M25: Oblitas | N25: Piura | O25: 80251
G26: Jorge | H26: Oviedo | I26: Ayacucho | J26: 43175 | L26: Jorge | M26: Oviedo | N26: Ayacucho | O26: 80012
L27: Gustavo | M27: Paredes | N27: Lima | O27: 92572
L28: Juan | M28: Peredo | N28: Arequipa | O28: 24877
L29: Héctor | M29: Pimentel | N29: Arequipa | O29: 61594
L30: Claudio | M30: Pino | N30: Trujillo | O30: 21125
L31: Paolo | M31: Pizarro | N31: Chiclayo | O31: 76407
L32: Luis | M32: Pozada | N32: Piura | O32: 95217
L33: Alfredo | M33: Ugaz | N33: Ayacucho | O33: 50803
L34: Santiago | M34: Urbina | N34: Lima | O34: 57633
L35: Yolanda | M35: Vargas | N35: Arequipa | O35: 74419
L36: Alicia | M36: Wiese | N36: Trujillo | O36: 90368

Sheet Hoja1
B3: Paola andrea
F5: Paola andrea | L5: Paola andrea
B6: Montecinos | G6: Paola andrea
J7: Paola andrea
I10: Paola andrea
F11: Paola andrea
K14: Paola andrea
B17: Paola andrea
